[Event "Titled Tuesday Blitz May 16 Early 2023"]
[White "Romkachess"]
[Black "Karthik Rajaa"]
[BlackFideId "25035215"]
[WhiteElo "2550"]
[BlackElo "2215"]
[Result "0-1"]
[Round "03"]
[TimeControl "180+2"]
[Date "2023.05.16"]
[WhiteClock "0:00:09"]
[BlackClock "0:00:09"]

1. e4 {[%clk 0:02:58]}  c6 {[%clk 0:03:00]} 2. d4 {[%clk 0:02:58]}  d5 {[%clk 0:03:00]} 3. Nc3 {[%clk 0:02:59]}  dxe4 {[%clk 0:03:00]} 4. Nxe4 {[%clk 0:03:00]}  Bf5 {[%clk 0:03:00]} 5. Ng3 {[%clk 0:03:00]}  Bg6 {[%clk 0:03:01]} 6. Nh3 {[%clk 0:03:01]}  Nf6 {[%clk 0:02:58]} 7. Nf4 {[%clk 0:03:01]}  e5 {[%clk 0:02:58]} 8. Nxg6 {[%clk 0:02:59]}  hxg6 {[%clk 0:02:59]} 9. dxe5 {[%clk 0:02:55]}  Qa5+ {[%clk 0:02:59]} 10. Bd2 {[%clk 0:02:53]}  Qxe5+ {[%clk 0:02:59]} 11. Qe2 {[%clk 0:02:54]}  Nbd7 {[%clk 0:02:56]} 12. O-O-O {[%clk 0:02:53]}  Bc5 {[%clk 0:02:54]} 13. f3 {[%clk 0:02:47]}  O-O-O {[%clk 0:02:47]} 14. Bc3 {[%clk 0:02:43]}  Qxe2 {[%clk 0:02:45]} 15. Bxe2 {[%clk 0:02:40]}  Rh4 {[%clk 0:02:44]} 16. Bd3 {[%clk 0:02:35]}  Be3+ {[%clk 0:02:33]} 17. Kb1 {[%clk 0:02:35]}  Nc5 {[%clk 0:02:34]} 18. Bxf6 {[%clk 0:02:29]}  gxf6 {[%clk 0:02:30]} 19. Ne4 {[%clk 0:02:30]}  Nxe4 {[%clk 0:02:20]} 20. fxe4 {[%clk 0:02:23]}  Bd4 {[%clk 0:02:19]} 21. h3 {[%clk 0:02:21]}  b5 {[%clk 0:02:16]} 22. Rhf1 {[%clk 0:02:15]}  Be5 {[%clk 0:02:11]} 23. c3 {[%clk 0:02:11]}  Kc7 {[%clk 0:02:09]} 24. Bc2 {[%clk 0:01:55]}  Rxd1+ {[%clk 0:02:03]} 25. Rxd1 {[%clk 0:01:53]}  Rf4 {[%clk 0:01:54]} 26. Bb3 {[%clk 0:01:49]}  Rf2 {[%clk 0:01:49]} 27. g4 {[%clk 0:01:48]}  g5 {[%clk 0:01:45]} 28. Bxf7 {[%clk 0:01:44]}  Rh2 {[%clk 0:01:44]} 29. Be6 {[%clk 0:01:36]}  Kb6 {[%clk 0:01:35]} 30. Rd3 {[%clk 0:01:29]}  a5 {[%clk 0:01:30]} 31. a3 {[%clk 0:01:28]}  Re2 {[%clk 0:01:10]} 32. Bf5 {[%clk 0:01:27]}  b4 {[%clk 0:01:10]} 33. axb4 {[%clk 0:01:20]}  axb4 {[%clk 0:01:10]} 34. cxb4 {[%clk 0:00:45]}  Rxb2+ {[%clk 0:01:10]} 35. Kc1 {[%clk 0:00:46]}  Rxb4 {[%clk 0:01:09]} 36. Kc2 {[%clk 0:00:32]}  Rb2+ {[%clk 0:01:08]} 37. Kc1 {[%clk 0:00:33]}  Rh2 {[%clk 0:01:06]} 38. Rb3+ {[%clk 0:00:27]}  Ka5 {[%clk 0:01:06]} 39. Bd7 {[%clk 0:00:26]}  Bf4+ {[%clk 0:00:48]} 40. Kb1 {[%clk 0:00:24]}  Rh1+ {[%clk 0:00:37]} 41. Kc2 {[%clk 0:00:22]}  Rc1+ {[%clk 0:00:28]} 42. Kb2 {[%clk 0:00:23]}  Rc4 {[%clk 0:00:27]} 43. Ra3+ {[%clk 0:00:18]}  Kb6 {[%clk 0:00:27]} 44. Rb3+ {[%clk 0:00:18]}  Kc7 {[%clk 0:00:27]} 45. Bf5 {[%clk 0:00:19]}  Be5+ {[%clk 0:00:27]} 46. Kb1 {[%clk 0:00:18]}  Rd4 {[%clk 0:00:22]} 47. Kc2 {[%clk 0:00:18]}  Bf4 {[%clk 0:00:19]} 48. Rd3 {[%clk 0:00:18]}  Rc4+ {[%clk 0:00:19]} 49. Kb3 {[%clk 0:00:19]}  Rc1 {[%clk 0:00:18]} 50. Rd7+ {[%clk 0:00:20]}  Kb6 {[%clk 0:00:18]} 51. Rf7 {[%clk 0:00:21]}  Be5 {[%clk 0:00:19]} 52. Rd7 {[%clk 0:00:21]}  Rc3+ {[%clk 0:00:19]} 53. Ka2 {[%clk 0:00:21]}  Rxh3 {[%clk 0:00:19]} 54. Rd1 {[%clk 0:00:18]}  c5 {[%clk 0:00:18]} 55. Be6 {[%clk 0:00:16]}  Kb5 {[%clk 0:00:16]} 56. Rb1+ {[%clk 0:00:16]}  Kc6 {[%clk 0:00:13]} 57. Bd5+ {[%clk 0:00:16]}  Kc7 {[%clk 0:00:13]} 58. Rb7+ {[%clk 0:00:17]}  Kc8 {[%clk 0:00:13]} 59. Rf7 {[%clk 0:00:16]}  Bd4 {[%clk 0:00:13]} 60. Kb1 {[%clk 0:00:15]}  Kd8 {[%clk 0:00:14]} 61. Kc2 {[%clk 0:00:16]}  Rg3 {[%clk 0:00:14]} 62. Rf8+ {[%clk 0:00:13]}  Ke7 {[%clk 0:00:13]} 63. Rf7+ {[%clk 0:00:14]}  Kd6 {[%clk 0:00:14]} 64. Rf8 {[%clk 0:00:12]}  Rxg4 {[%clk 0:00:14]} 65. Rd8+ {[%clk 0:00:12]}  Ke5 {[%clk 0:00:14]} 66. Kd3 {[%clk 0:00:10]}  Rg3+ {[%clk 0:00:14]} 67. Kc4 {[%clk 0:00:11]}  Kf4 {[%clk 0:00:14]} 68. Rf8 {[%clk 0:00:09]}  Ke3 {[%clk 0:00:14]} 69. Bc6 {[%clk 0:00:08]}  Rg1 {[%clk 0:00:13]} 70. Kd5 {[%clk 0:00:08]}  g4 {[%clk 0:00:13]} 71. Rg8 {[%clk 0:00:07]}  g3 {[%clk 0:00:13]} 72. Ke6 {[%clk 0:00:07]}  Be5 {[%clk 0:00:13]} 73. Bd5 {[%clk 0:00:06]}  Rc1 {[%clk 0:00:10]} 74. Kf5 {[%clk 0:00:06]}  c4 {[%clk 0:00:10]} 75. Rg4 {[%clk 0:00:02]}  c3 {[%clk 0:00:10]} 76. Rg8 {[%clk 0:00:02]}  c2 {[%clk 0:00:09]} 77. Bc4 {[%clk 0:00:03]}  Rf1+ {[%clk 0:00:08]} 78. Bxf1 {[%clk 0:00:04]}  c1=Q {[%clk 0:00:09]} 79. Bh3 {[%clk 0:00:04]}  Kf2 {[%clk 0:00:07]} 80. Rg4 {[%clk 0:00:04]}  Qh6 {[%clk 0:00:07]} 81. Ke6 {[%clk 0:00:03]}  Qxh3 {[%clk 0:00:07]} 82. Kf7 {[%clk 0:00:03]}  Qxg4 {[%clk 0:00:07]} 83. Ke7 {[%clk 0:00:04]}  Qxe4 {[%clk 0:00:06]} 84. Kd7 {[%clk 0:00:05]}  g2 {[%clk 0:00:07]} 85. Kd8 {[%clk 0:00:06]}  g1=Q {[%clk 0:00:07]} 86. Kd7 {[%clk 0:00:07]}  Qd1+ {[%clk 0:00:08]} 87. Kc8 {[%clk 0:00:08]}  Qec2+ {[%clk 0:00:08]} 88. Kb7 {[%clk 0:00:08]}  Qdb1+ {[%clk 0:00:09]} 89. Ka8 {[%clk 0:00:09]}  Qca2# {[%clk 0:00:09]} 0-1


[Site "https://www.chess.com"]

[Event "Titled Tuesday Blitz May 16 Early 2023"]
[White "Papasimakopoulos, Alexandros"]
[Black "Eynullayev, Atilla"]
[WhiteFideId "4244125"]
[BlackFideId "13413570"]
[WhiteElo "2359"]
[BlackElo "2181"]
[Result "1-0"]
[Round "03"]
[TimeControl "180+2"]
[Date "2023.05.16"]
[WhiteClock "0:01:10"]
[BlackClock "0:00:14"]

1. d4 {[%clk 0:02:54]}  Nf6 {[%clk 0:03:00]} 2. c4 {[%clk 0:02:54]}  e6 {[%clk 0:03:00]} 3. Nc3 {[%clk 0:02:54]}  Bb4 {[%clk 0:03:00]} 4. Qc2 {[%clk 0:02:54]}  O-O {[%clk 0:03:00]} 5. a3 {[%clk 0:02:54]}  Bxc3+ {[%clk 0:03:00]} 6. Qxc3 {[%clk 0:02:55]}  b6 {[%clk 0:03:00]} 7. Bg5 {[%clk 0:02:52]}  c5 {[%clk 0:03:01]} 8. Nf3 {[%clk 0:02:45]}  cxd4 {[%clk 0:02:58]} 9. Nxd4 {[%clk 0:02:45]}  Ne4 {[%clk 0:02:31]} 10. Bxd8 {[%clk 0:02:41]}  Nxc3 {[%clk 0:02:31]} 11. Bh4 {[%clk 0:02:35]}  Na4 {[%clk 0:02:24]} 12. O-O-O {[%clk 0:02:19]}  Ba6 {[%clk 0:02:00]} 13. b3 {[%clk 0:02:08]}  Nc3 {[%clk 0:01:39]} 14. Rd3 {[%clk 0:02:06]}  Ne4 {[%clk 0:01:39]} 15. f3 {[%clk 0:02:03]}  Nc5 {[%clk 0:01:36]} 16. Rc3 {[%clk 0:02:00]}  Rc8 {[%clk 0:01:33]} 17. Kb2 {[%clk 0:01:57]}  Nc6 {[%clk 0:01:27]} 18. Nxc6 {[%clk 0:01:54]}  Rxc6 {[%clk 0:01:27]} 19. e4 {[%clk 0:01:54]}  Rac8 {[%clk 0:01:21]} 20. Be2 {[%clk 0:01:53]}  b5 {[%clk 0:01:12]} 21. Rd1 {[%clk 0:01:41]}  bxc4 {[%clk 0:01:10]} 22. Bxc4 {[%clk 0:01:40]}  Nxb3 {[%clk 0:01:02]} 23. Bxa6 {[%clk 0:01:37]}  Nc5 {[%clk 0:00:37]} 24. Rxc5 {[%clk 0:01:11]}  Rb6+ {[%clk 0:00:14]} 25. Rb5 {[%clk 0:01:10]} 1-0


[Site "https://www.chess.com"]

[Event "Titled Tuesday Blitz May 16 Early 2023"]
[White "McCoy, Owen"]
[Black "Rodriguez Polo, Mateo"]
[WhiteFideId "30924502"]
[BlackFideId "24509396"]
[WhiteElo "2686"]
[BlackElo "2117"]
[Result "1-0"]
[Round "03"]
[TimeControl "180+2"]
[Date "2023.05.16"]
[WhiteClock "0:00:20"]
[BlackClock "0:00:19"]

1. d4 {[%clk 0:03:00]}  Nf6 {[%clk 0:02:59]} 2. Nf3 {[%clk 0:03:01]}  d5 {[%clk 0:02:59]} 3. Bf4 {[%clk 0:03:00]}  c5 {[%clk 0:02:59]} 4. e3 {[%clk 0:03:00]}  Nc6 {[%clk 0:02:59]} 5. Nbd2 {[%clk 0:02:58]}  Qb6 {[%clk 0:02:53]} 6. dxc5 {[%clk 0:02:56]}  Qxb2 {[%clk 0:02:53]} 7. Rb1 {[%clk 0:02:55]}  Qa3 {[%clk 0:02:53]} 8. Bb5 {[%clk 0:02:37]}  e6 {[%clk 0:02:53]} 9. Ne5 {[%clk 0:02:16]}  Qxc5 {[%clk 0:02:48]} 10. c4 {[%clk 0:01:54]}  Be7 {[%clk 0:01:45]} 11. Nd3 {[%clk 0:01:36]}  Qa3 {[%clk 0:01:40]} 12. Rb3 {[%clk 0:01:30]}  Qa5 {[%clk 0:01:37]} 13. Ne5 {[%clk 0:01:24]}  O-O {[%clk 0:01:32]} 14. Bxc6 {[%clk 0:01:22]}  bxc6 {[%clk 0:01:30]} 15. Nxc6 {[%clk 0:01:22]}  Qc5 {[%clk 0:01:23]} 16. Nxe7+ {[%clk 0:01:21]}  Qxe7 {[%clk 0:01:24]} 17. cxd5 {[%clk 0:00:56]}  Nxd5 {[%clk 0:01:23]} 18. O-O {[%clk 0:00:55]}  Nxf4 {[%clk 0:01:11]} 19. exf4 {[%clk 0:00:56]}  Ba6 {[%clk 0:01:04]} 20. Re1 {[%clk 0:00:56]}  Rfd8 {[%clk 0:01:02]} 21. Qc1 {[%clk 0:00:50]}  Rac8 {[%clk 0:00:59]} 22. Qb2 {[%clk 0:00:48]}  Qd7 {[%clk 0:00:40]} 23. Nf3 {[%clk 0:00:33]}  Bc4 {[%clk 0:00:38]} 24. Ne5 {[%clk 0:00:30]}  Qd1 {[%clk 0:00:35]} 25. Re3 {[%clk 0:00:27]}  Rd2 {[%clk 0:00:25]} 26. Qb7 {[%clk 0:00:22]}  Rf8 {[%clk 0:00:19]} 27. Nxc4 {[%clk 0:00:20]} 1-0


[Site "https://www.chess.com"]

[Event "Titled Tuesday Blitz May 16 Early 2023"]
[White "Moussard, Jules"]
[Black "Guerra Tulcan, Lenin"]
[WhiteFideId "642908"]
[BlackFideId "3601382"]
[WhiteElo "2610"]
[BlackElo "2368"]
[Result "1-0"]
[Round "03"]
[TimeControl "180+2"]
[Date "2023.05.16"]
[WhiteClock "0:00:42"]
[BlackClock "0:00:18"]

1. b3 {[%clk 0:03:00]}  e5 {[%clk 0:02:56]} 2. Bb2 {[%clk 0:03:00]}  d6 {[%clk 0:02:56]} 3. e3 {[%clk 0:03:00]}  Nf6 {[%clk 0:02:33]} 4. c4 {[%clk 0:02:52]}  Be7 {[%clk 0:02:33]} 5. Nc3 {[%clk 0:02:50]}  O-O {[%clk 0:02:34]} 6. Nf3 {[%clk 0:02:35]}  c6 {[%clk 0:02:34]} 7. d4 {[%clk 0:02:35]}  exd4 {[%clk 0:02:33]} 8. Nxd4 {[%clk 0:02:35]}  Re8 {[%clk 0:02:34]} 9. Be2 {[%clk 0:02:35]}  Nbd7 {[%clk 0:02:33]} 10. O-O {[%clk 0:02:35]}  Nf8 {[%clk 0:02:32]} 11. Qc2 {[%clk 0:02:34]}  Ng6 {[%clk 0:02:32]} 12. Rad1 {[%clk 0:02:32]}  Qc7 {[%clk 0:02:32]} 13. Nf5 {[%clk 0:02:28]}  Bxf5 {[%clk 0:02:32]} 14. Qxf5 {[%clk 0:02:28]}  Rad8 {[%clk 0:02:32]} 15. g3 {[%clk 0:02:20]}  Qc8 {[%clk 0:02:31]} 16. Qxc8 {[%clk 0:02:18]}  Rxc8 {[%clk 0:02:31]} 17. h4 {[%clk 0:02:19]}  h6 {[%clk 0:02:24]} 18. h5 {[%clk 0:02:17]}  Nf8 {[%clk 0:02:21]} 19. Kg2 {[%clk 0:02:16]}  Red8 {[%clk 0:02:19]} 20. f4 {[%clk 0:02:02]}  d5 {[%clk 0:02:16]} 21. cxd5 {[%clk 0:02:02]}  Nxd5 {[%clk 0:02:16]} 22. Nxd5 {[%clk 0:02:02]}  cxd5 {[%clk 0:02:17]} 23. Bf3 {[%clk 0:02:01]}  Rc2+ {[%clk 0:01:44]} 24. Rf2 {[%clk 0:02:00]}  Rdc8 {[%clk 0:01:43]} 25. Rdd2 {[%clk 0:01:53]}  Rxd2 {[%clk 0:01:41]} 26. Rxd2 {[%clk 0:01:54]}  Bb4 {[%clk 0:01:41]} 27. Re2 {[%clk 0:01:55]}  Rc5 {[%clk 0:01:28]} 28. a3 {[%clk 0:01:40]}  Bc3 {[%clk 0:01:26]} 29. Rc2 {[%clk 0:01:30]}  d4 {[%clk 0:01:16]} 30. exd4 {[%clk 0:01:26]}  Bxd4 {[%clk 0:01:12]} 31. Rxc5 {[%clk 0:01:27]}  Bxc5 {[%clk 0:01:13]} 32. b4 {[%clk 0:01:28]}  Bb6 {[%clk 0:01:10]} 33. Bxb7 {[%clk 0:01:28]}  Ne6 {[%clk 0:01:09]} 34. a4 {[%clk 0:01:20]}  Kf8 {[%clk 0:01:08]} 35. Bd5 {[%clk 0:01:18]}  Nc7 {[%clk 0:00:59]} 36. Bc4 {[%clk 0:01:17]}  a5 {[%clk 0:00:57]} 37. bxa5 {[%clk 0:01:14]}  Bxa5 {[%clk 0:00:56]} 38. Kf3 {[%clk 0:01:15]}  Bb4 {[%clk 0:00:50]} 39. Ke4 {[%clk 0:01:12]}  f6 {[%clk 0:00:50]} 40. Kf5 {[%clk 0:01:10]}  Ke7 {[%clk 0:00:43]} 41. Kg6 {[%clk 0:01:08]}  Kf8 {[%clk 0:00:41]} 42. a5 {[%clk 0:01:07]}  Bxa5 {[%clk 0:00:25]} 43. Ba3+ {[%clk 0:01:06]}  Ke8 {[%clk 0:00:26]} 44. Kxg7 {[%clk 0:01:07]}  Be1 {[%clk 0:00:26]} 45. g4 {[%clk 0:01:01]}  Bg3 {[%clk 0:00:25]} 46. Bc1 {[%clk 0:00:55]}  Ke7 {[%clk 0:00:21]} 47. Kxh6 {[%clk 0:00:54]}  Ne8 {[%clk 0:00:21]} 48. Kg6 {[%clk 0:00:42]}  Nd6 {[%clk 0:00:18]} 1-0


[Site "https://www.chess.com"]

[Event "Titled Tuesday Blitz May 16 Early 2023"]
[White "Sarana, Alexey"]
[Black "Omelja, Artem"]
[WhiteFideId "24133795"]
[BlackFideId "14119846"]
[WhiteElo "2714"]
[BlackElo "2404"]
[Result "0-1"]
[Round "03"]
[TimeControl "180+2"]
[Date "2023.05.16"]
[WhiteClock "0:00:01"]
[BlackClock "0:00:08"]

1. c4 {[%clk 0:02:52]}  Nf6 {[%clk 0:02:40]} 2. Nc3 {[%clk 0:02:52]}  e6 {[%clk 0:02:38]} 3. d4 {[%clk 0:02:50]}  d5 {[%clk 0:02:39]} 4. cxd5 {[%clk 0:02:50]}  exd5 {[%clk 0:02:39]} 5. Bg5 {[%clk 0:02:50]}  c6 {[%clk 0:02:39]} 6. e3 {[%clk 0:02:50]}  Be7 {[%clk 0:02:38]} 7. Bd3 {[%clk 0:02:50]}  O-O {[%clk 0:02:38]} 8. Nf3 {[%clk 0:02:49]}  Re8 {[%clk 0:02:37]} 9. Qc2 {[%clk 0:02:49]}  h6 {[%clk 0:02:37]} 10. Bf4 {[%clk 0:02:49]}  Nbd7 {[%clk 0:02:36]} 11. O-O {[%clk 0:02:48]}  Nf8 {[%clk 0:02:29]} 12. h3 {[%clk 0:02:41]}  Be6 {[%clk 0:02:18]} 13. Rab1 {[%clk 0:02:33]}  Rc8 {[%clk 0:02:15]} 14. b4 {[%clk 0:02:32]}  a6 {[%clk 0:02:15]} 15. Na4 {[%clk 0:02:27]}  Bd6 {[%clk 0:01:53]} 16. Bxd6 {[%clk 0:02:23]}  Qxd6 {[%clk 0:01:53]} 17. Ne5 {[%clk 0:02:24]}  N6d7 {[%clk 0:01:47]} 18. f4 {[%clk 0:02:19]}  f6 {[%clk 0:01:46]} 19. Nf3 {[%clk 0:02:17]}  Bf7 {[%clk 0:01:44]} 20. Rfe1 {[%clk 0:02:17]}  Re7 {[%clk 0:01:44]} 21. Nh4 {[%clk 0:02:16]}  Be6 {[%clk 0:01:35]} 22. Nc5 {[%clk 0:02:13]}  Nxc5 {[%clk 0:01:30]} 23. bxc5 {[%clk 0:02:14]}  Qd7 {[%clk 0:01:28]} 24. Rb3 {[%clk 0:02:10]}  Rc7 {[%clk 0:01:27]} 25. Reb1 {[%clk 0:02:06]}  Kh8 {[%clk 0:01:20]} 26. Qf2 {[%clk 0:01:50]}  Qc8 {[%clk 0:01:08]} 27. Qg3 {[%clk 0:01:48]}  Qe8 {[%clk 0:01:01]} 28. R1b2 {[%clk 0:01:44]}  Bg8 {[%clk 0:00:59]} 29. Nf5 {[%clk 0:01:39]}  Red7 {[%clk 0:00:42]} 30. Nd6 {[%clk 0:01:40]}  Qa8 {[%clk 0:00:39]} 31. Rb6 {[%clk 0:01:34]}  Ne6 {[%clk 0:00:36]} 32. Bxa6 {[%clk 0:01:32]}  bxa6 {[%clk 0:00:33]} 33. Rb8 {[%clk 0:01:32]}  Qa7 {[%clk 0:00:31]} 34. Qg6 {[%clk 0:01:23]}  Rd8 {[%clk 0:00:30]} 35. R8b7 {[%clk 0:01:12]}  Qa8 {[%clk 0:00:25]} 36. R2b6 {[%clk 0:00:47]}  Rxb7 {[%clk 0:00:23]} 37. Rxb7 {[%clk 0:00:17]}  Rxd6 {[%clk 0:00:20]} 38. Re7 {[%clk 0:00:18]}  Rd8 {[%clk 0:00:10]} 39. f5 {[%clk 0:00:18]}  Bh7 {[%clk 0:00:10]} 40. Qg4 {[%clk 0:00:13]}  Ng5 {[%clk 0:00:10]} 41. h4 {[%clk 0:00:13]}  Re8 {[%clk 0:00:10]} 42. Rd7 {[%clk 0:00:08]}  Qc8 {[%clk 0:00:10]} 43. Rd6 {[%clk 0:00:04]}  Bxf5 {[%clk 0:00:10]} 44. Qf4 {[%clk 0:00:04]}  Re4 {[%clk 0:00:09]} 45. Qf2 {[%clk 0:00:02]}  Nf7 {[%clk 0:00:08]} 46. Qg3 {[%clk 0:00:02]}  Nxd6 {[%clk 0:00:08]} 47. cxd6 {[%clk 0:00:02]}  Qd7 {[%clk 0:00:08]} 48. h5 {[%clk 0:00:03]}  Re6 {[%clk 0:00:08]} 49. Qf2 {[%clk 0:00:03]}  Be4 {[%clk 0:00:08]} 50. Qb2 {[%clk 0:00:04]}  Qxd6 {[%clk 0:00:08]} 51. Qb7 {[%clk 0:00:05]}  Re8 {[%clk 0:00:08]} 52. Qf7 {[%clk 0:00:01]}  Qe6 {[%clk 0:00:08]} 0-1


[Site "https://www.chess.com"]

[Event "Titled Tuesday Blitz May 16 Early 2023"]
[White "Madaminov, Mukhiddin"]
[Black "Reprintsev, Alexander"]
[WhiteFideId "14210703"]
[BlackFideId "14100541"]
[WhiteElo "2511"]
[BlackElo "2218"]
[Result "1-0"]
[Round "03"]
[TimeControl "180+2"]
[Date "2023.05.16"]
[WhiteClock "0:01:02"]
[BlackClock "0:00:04"]

1. Nf3 {[%clk 0:03:00]}  d5 {[%clk 0:02:58]} 2. e3 {[%clk 0:03:00]}  Nc6 {[%clk 0:02:56]} 3. c4 {[%clk 0:03:01]}  dxc4 {[%clk 0:02:54]} 4. Bxc4 {[%clk 0:02:58]}  e5 {[%clk 0:02:54]} 5. Nc3 {[%clk 0:02:58]}  Bd6 {[%clk 0:02:52]} 6. O-O {[%clk 0:02:58]}  Nf6 {[%clk 0:02:51]} 7. d3 {[%clk 0:02:54]}  O-O {[%clk 0:02:47]} 8. a3 {[%clk 0:02:55]}  a6 {[%clk 0:02:44]} 9. Qc2 {[%clk 0:02:54]}  b5 {[%clk 0:02:43]} 10. Ba2 {[%clk 0:02:54]}  Bb7 {[%clk 0:02:44]} 11. Rd1 {[%clk 0:02:50]}  Ne7 {[%clk 0:02:43]} 12. Ne4 {[%clk 0:02:50]}  Ng6 {[%clk 0:02:36]} 13. b4 {[%clk 0:02:43]}  Re8 {[%clk 0:02:32]} 14. Bb2 {[%clk 0:02:43]}  Bf8 {[%clk 0:02:26]} 15. Nfg5 {[%clk 0:02:40]}  Nh8 {[%clk 0:02:17]} 16. Rac1 {[%clk 0:02:36]}  Rc8 {[%clk 0:02:16]} 17. h3 {[%clk 0:02:27]}  h6 {[%clk 0:02:16]} 18. Nxf6+ {[%clk 0:02:28]}  Qxf6 {[%clk 0:02:14]} 19. Ne4 {[%clk 0:02:28]}  Qd8 {[%clk 0:02:05]} 20. Nc5 {[%clk 0:02:26]}  Bxc5 {[%clk 0:02:01]} 21. Qxc5 {[%clk 0:02:27]}  Ng6 {[%clk 0:02:00]} 22. d4 {[%clk 0:02:09]}  Qg5 {[%clk 0:01:57]} 23. Bd5 {[%clk 0:02:07]}  Bxd5 {[%clk 0:01:50]} 24. Qxd5 {[%clk 0:02:08]}  exd4 {[%clk 0:01:37]} 25. Qxg5 {[%clk 0:02:08]}  hxg5 {[%clk 0:01:37]} 26. Bxd4 {[%clk 0:02:08]}  Re6 {[%clk 0:01:34]} 27. Rc5 {[%clk 0:02:03]}  f6 {[%clk 0:01:32]} 28. Rdc1 {[%clk 0:02:04]}  c6 {[%clk 0:01:32]} 29. a4 {[%clk 0:02:04]}  Ne7 {[%clk 0:01:28]} 30. axb5 {[%clk 0:02:00]}  axb5 {[%clk 0:01:28]} 31. Ra1 {[%clk 0:02:01]}  Rc7 {[%clk 0:01:21]} 32. Ra6 {[%clk 0:02:00]}  Rd7 {[%clk 0:01:17]} 33. Rxb5 {[%clk 0:01:58]}  cxb5 {[%clk 0:01:07]} 34. Rxe6 {[%clk 0:01:57]}  Kf7 {[%clk 0:01:07]} 35. Rb6 {[%clk 0:01:56]}  Rd5 {[%clk 0:01:06]} 36. Rb7 {[%clk 0:01:56]}  Ke6 {[%clk 0:01:04]} 37. Bc5 {[%clk 0:01:56]}  Nf5 {[%clk 0:00:59]} 38. e4 {[%clk 0:01:57]}  Rd1+ {[%clk 0:00:59]} 39. Kh2 {[%clk 0:01:57]}  Nd6 {[%clk 0:00:46]} 40. Bxd6 {[%clk 0:01:38]}  Kxd6 {[%clk 0:00:40]} 41. Rxb5 {[%clk 0:01:38]}  g6 {[%clk 0:00:37]} 42. Kg3 {[%clk 0:01:21]}  Ke6 {[%clk 0:00:34]} 43. f3 {[%clk 0:01:18]}  Rb1 {[%clk 0:00:33]} 44. h4 {[%clk 0:01:18]}  gxh4+ {[%clk 0:00:32]} 45. Kxh4 {[%clk 0:01:18]}  Rb2 {[%clk 0:00:29]} 46. g3 {[%clk 0:01:17]}  Rb3 {[%clk 0:00:21]} 47. Kg4 {[%clk 0:01:16]}  Rb1 {[%clk 0:00:19]} 48. f4 {[%clk 0:01:16]}  Rb3 {[%clk 0:00:17]} 49. Rb6+ {[%clk 0:01:15]}  Ke7 {[%clk 0:00:15]} 50. f5 {[%clk 0:01:15]}  gxf5+ {[%clk 0:00:12]} 51. exf5 {[%clk 0:01:16]}  Rc3 {[%clk 0:00:11]} 52. b5 {[%clk 0:01:15]}  Rb3 {[%clk 0:00:11]} 53. Re6+ {[%clk 0:01:13]}  Kf7 {[%clk 0:00:11]} 54. b6 {[%clk 0:01:14]}  Rb4+ {[%clk 0:00:10]} 55. Kf3 {[%clk 0:01:14]}  Rb3+ {[%clk 0:00:10]} 56. Kf4 {[%clk 0:01:06]}  Rb4+ {[%clk 0:00:09]} 57. Ke3 {[%clk 0:01:06]}  Rb3+ {[%clk 0:00:10]} 58. Kd4 {[%clk 0:01:06]}  Rxg3 {[%clk 0:00:10]} 59. Re3 {[%clk 0:01:02]}  Rg8 {[%clk 0:00:07]} 60. b7 {[%clk 0:01:00]}  Rb8 {[%clk 0:00:06]} 61. Rb3 {[%clk 0:01:01]}  Ke7 {[%clk 0:00:06]} 62. Kc5 {[%clk 0:01:01]}  Kd7 {[%clk 0:00:04]} 63. Kb6 {[%clk 0:01:02]} 1-0


[Site "https://www.chess.com"]

[Event "Titled Tuesday Blitz May 16 Early 2023"]
[White "Svane, Frederik"]
[Black "Dixit, Nikhil"]
[WhiteFideId "12923044"]
[BlackFideId "5059534"]
[WhiteElo "2502"]
[BlackElo "2207"]
[Result "0-1"]
[Round "03"]
[TimeControl "180+2"]
[Date "2023.05.16"]
[WhiteClock "0:00:07"]
[BlackClock "0:00:20"]

1. g3 {[%clk 0:03:00]}  Nf6 {[%clk 0:02:54]} 2. Bg2 {[%clk 0:03:01]}  g6 {[%clk 0:02:55]} 3. e4 {[%clk 0:03:01]}  d6 {[%clk 0:02:55]} 4. Nc3 {[%clk 0:03:01]}  Bg7 {[%clk 0:02:55]} 5. d4 {[%clk 0:03:01]}  O-O {[%clk 0:02:56]} 6. Nge2 {[%clk 0:03:02]}  e5 {[%clk 0:02:56]} 7. O-O {[%clk 0:03:02]}  exd4 {[%clk 0:02:56]} 8. Nxd4 {[%clk 0:03:02]}  Bd7 {[%clk 0:02:57]} 9. h3 {[%clk 0:03:00]}  Nc6 {[%clk 0:02:56]} 10. Nde2 {[%clk 0:03:01]}  Re8 {[%clk 0:02:56]} 11. Be3 {[%clk 0:02:58]}  Ne5 {[%clk 0:02:55]} 12. b3 {[%clk 0:02:58]}  b5 {[%clk 0:02:35]} 13. a3 {[%clk 0:02:28]}  a5 {[%clk 0:02:31]} 14. f4 {[%clk 0:02:22]}  Nc6 {[%clk 0:02:29]} 15. Qd3 {[%clk 0:02:23]}  b4 {[%clk 0:02:28]} 16. axb4 {[%clk 0:02:24]}  Nxb4 {[%clk 0:02:27]} 17. Qd2 {[%clk 0:02:24]}  Bc6 {[%clk 0:01:56]} 18. Bd4 {[%clk 0:02:24]}  Nxe4 {[%clk 0:01:45]} 19. Bxe4 {[%clk 0:02:20]}  Bxe4 {[%clk 0:01:42]} 20. Bxg7 {[%clk 0:02:18]}  Kxg7 {[%clk 0:01:43]} 21. Nxe4 {[%clk 0:02:18]}  Rxe4 {[%clk 0:01:42]} 22. Nc3 {[%clk 0:02:19]}  Re6 {[%clk 0:01:33]} 23. f5 {[%clk 0:02:18]}  gxf5 {[%clk 0:01:33]} 24. Rxf5 {[%clk 0:02:19]}  Qe7 {[%clk 0:01:30]} 25. Raf1 {[%clk 0:02:17]}  Re8 {[%clk 0:01:29]} 26. Rxa5 {[%clk 0:01:59]}  Rg6 {[%clk 0:01:13]} 27. Kg2 {[%clk 0:01:07]}  c5 {[%clk 0:00:57]} 28. Rf3 {[%clk 0:00:55]}  Nc6 {[%clk 0:00:53]} 29. Ra4 {[%clk 0:00:53]}  Nd4 {[%clk 0:00:51]} 30. Rxd4 {[%clk 0:00:53]}  cxd4 {[%clk 0:00:51]} 31. Qxd4+ {[%clk 0:00:54]}  Qe5 {[%clk 0:00:52]} 32. Qf2 {[%clk 0:00:53]}  Rf6 {[%clk 0:00:48]} 33. b4 {[%clk 0:00:50]}  Rxf3 {[%clk 0:00:43]} 34. Qxf3 {[%clk 0:00:51]}  Qf6 {[%clk 0:00:42]} 35. Qd3 {[%clk 0:00:47]}  Qg6 {[%clk 0:00:33]} 36. Qd2 {[%clk 0:00:22]}  Rc8 {[%clk 0:00:23]} 37. b5 {[%clk 0:00:22]}  Qf5 {[%clk 0:00:18]} 38. b6 {[%clk 0:00:02]}  Qc5 {[%clk 0:00:18]} 39. b7 {[%clk 0:00:02]}  Qc6+ {[%clk 0:00:09]} 40. Qd5 {[%clk 0:00:01]}  Qxd5+ {[%clk 0:00:08]} 41. Nxd5 {[%clk 0:00:02]}  Rxc2+ {[%clk 0:00:09]} 42. Kf3 {[%clk 0:00:02]}  Rb2 {[%clk 0:00:09]} 43. Ne7 {[%clk 0:00:01]}  Rxb7 {[%clk 0:00:09]} 44. Nf5+ {[%clk 0:00:02]}  Kg6 {[%clk 0:00:10]} 45. Nxd6 {[%clk 0:00:03]}  Rb3+ {[%clk 0:00:10]} 46. Kf4 {[%clk 0:00:03]}  Rb2 {[%clk 0:00:11]} 47. Ne4 {[%clk 0:00:03]}  Rb1 {[%clk 0:00:12]} 48. h4 {[%clk 0:00:02]}  Rf1+ {[%clk 0:00:12]} 49. Kg4 {[%clk 0:00:01]}  f5+ {[%clk 0:00:12]} 50. Kh3 {[%clk 0:00:02]}  fxe4 {[%clk 0:00:13]} 51. Kg2 {[%clk 0:00:03]}  Rf3 {[%clk 0:00:13]} 52. Kh3 {[%clk 0:00:04]}  Kf5 {[%clk 0:00:14]} 53. h5 {[%clk 0:00:04]}  Kg5 {[%clk 0:00:14]} 54. Kg2 {[%clk 0:00:04]}  Kg4 {[%clk 0:00:15]} 55. Kh2 {[%clk 0:00:04]}  h6 {[%clk 0:00:16]} 56. Kh1 {[%clk 0:00:04]}  e3 {[%clk 0:00:17]} 57. Kh2 {[%clk 0:00:05]}  Rf2+ {[%clk 0:00:17]} 58. Kg1 {[%clk 0:00:05]}  Kxg3 {[%clk 0:00:18]} 59. Kh1 {[%clk 0:00:06]}  e2 {[%clk 0:00:19]} 60. Kg1 {[%clk 0:00:07]}  e1=Q# {[%clk 0:00:20]} 0-1


[Site "https://www.chess.com"]